[Event "Titled Tuesday Blitz August 1 Early 2023"]
[White "Alamzhi21"]
[Black "TomLiu777"]
[WhiteElo "2711"]
[BlackElo "2458"]
[Result "1-0"]
[Round "2"]
[TimeControl "180+1"]
[Date "2023.08.01"]
[WhiteClock "0:01:10"]
[BlackClock "0:00:03"]
[Board "84"]

1. d4 {[%clk 0:03:00]}  Nf6 {[%clk 0:02:59]} 2. Bf4 {[%clk 0:03:00]}  c5 {[%clk 0:02:58]} 3. d5 {[%clk 0:03:00]}  Qb6 {[%clk 0:02:53]} 4. Nc3 {[%clk 0:03:00]}  Qxb2 {[%clk 0:02:50]} 5. Bd2 {[%clk 0:03:00]}  Qb6 {[%clk 0:02:48]} 6. e4 {[%clk 0:03:00]}  d6 {[%clk 0:02:48]} 7. f4 {[%clk 0:03:00]}  g6 {[%clk 0:02:47]} 8. Nf3 {[%clk 0:03:01]}  Bg7 {[%clk 0:02:45]} 9. Rb1 {[%clk 0:02:59]}  Qd8 {[%clk 0:02:43]} 10. Bb5+ {[%clk 0:02:56]}  Bd7 {[%clk 0:02:40]} 11. e5 {[%clk 0:02:56]}  dxe5 {[%clk 0:02:15]} 12. fxe5 {[%clk 0:02:55]}  Ng4 {[%clk 0:02:14]} 13. e6 {[%clk 0:02:39]}  fxe6 {[%clk 0:02:14]} 14. Ng5 {[%clk 0:02:39]}  O-O {[%clk 0:01:09]} 15. Qxg4 {[%clk 0:02:31]}  exd5 {[%clk 0:00:55]} 16. Bxd7 {[%clk 0:02:30]}  Qxd7 {[%clk 0:00:55]} 17. Qxd7 {[%clk 0:02:29]}  Nxd7 {[%clk 0:00:56]} 18. Ne6 {[%clk 0:02:26]}  Rf5 {[%clk 0:00:41]} 19. Nxg7 {[%clk 0:02:26]}  Kxg7 {[%clk 0:00:42]} 20. Rxb7 {[%clk 0:02:25]}  Rd8 {[%clk 0:00:35]} 21. Rf1 {[%clk 0:02:24]}  Re5+ {[%clk 0:00:34]} 22. Kd1 {[%clk 0:02:24]}  Nb6 {[%clk 0:00:31]} 23. Re1 {[%clk 0:02:14]}  Rxe1+ {[%clk 0:00:28]} 24. Bxe1 {[%clk 0:02:15]}  Kf6 {[%clk 0:00:28]} 25. Rxa7 {[%clk 0:02:15]}  Nc4 {[%clk 0:00:27]} 26. Bf2 {[%clk 0:02:03]}  d4 {[%clk 0:00:24]} 27. Ne4+ {[%clk 0:02:03]}  Ke5 {[%clk 0:00:22]} 28. Nxc5 {[%clk 0:02:03]}  Kd5 {[%clk 0:00:14]} 29. Nd3 {[%clk 0:02:02]}  e5 {[%clk 0:00:13]} 30. Bg3 {[%clk 0:01:27]}  e4 {[%clk 0:00:13]} 31. Nf4+ {[%clk 0:01:27]}  Kc6 {[%clk 0:00:08]} 32. Ne6 {[%clk 0:01:25]}  Rd5 {[%clk 0:00:05]} 33. Rc7+ {[%clk 0:01:20]}  Kb5 {[%clk 0:00:05]} 34. Rc8 {[%clk 0:01:20]}  Kb4 {[%clk 0:00:05]} 35. Be1+ {[%clk 0:01:18]}  Ka3 {[%clk 0:00:01]} 36. Rxc4 {[%clk 0:01:18]}  d3 {[%clk 0:00:01]} 37. cxd3 {[%clk 0:01:16]}  Rxd3+ {[%clk 0:00:02]} 38. Ke2 {[%clk 0:01:16]}  Kb2 {[%clk 0:00:03]} 39. Nd4 {[%clk 0:01:15]}  Ra3 {[%clk 0:00:03]} 40. Rc2+ {[%clk 0:01:13]}  Kb1 {[%clk 0:00:04]} 41. Rd2 {[%clk 0:01:11]}  e3 {[%clk 0:00:04]} 42. Rd3 {[%clk 0:01:11]}  Kb2 {[%clk 0:00:05]} 43. Rxa3 {[%clk 0:01:10]}  Kxa3 {[%clk 0:00:03]} 44. Kxe3 {[%clk 0:01:10]} 1-0


[Site "https://www.chess.com"]

[Event "Titled Tuesday Blitz August 1 Early 2023"]
[White "Morefield, Jason"]
[Black "Schlecht, Daniel, Dr."]
[WhiteFideId "30920825"]
[BlackFideId "4623959"]
[WhiteElo "2707"]
[BlackElo "2432"]
[Result "1/2-1/2"]
[Round "2"]
[TimeControl "180+1"]
[Date "2023.08.01"]
[WhiteClock "0:00:18"]
[BlackClock "0:00:11"]
[Board "88"]

1. b3 {[%clk 0:03:00]}  d5 {[%clk 0:02:59]} 2. Bb2 {[%clk 0:03:01]}  c6 {[%clk 0:02:59]} 3. Nf3 {[%clk 0:03:01]}  Bg4 {[%clk 0:02:59]} 4. g3 {[%clk 0:03:01]}  Nd7 {[%clk 0:02:59]} 5. Bg2 {[%clk 0:03:01]}  Ngf6 {[%clk 0:02:59]} 6. O-O {[%clk 0:03:01]}  e6 {[%clk 0:02:59]} 7. h3 {[%clk 0:03:01]}  Bh5 {[%clk 0:02:58]} 8. d3 {[%clk 0:03:00]}  a5 {[%clk 0:02:58]} 9. Nbd2 {[%clk 0:02:59]}  a4 {[%clk 0:02:58]} 10. a3 {[%clk 0:02:59]}  axb3 {[%clk 0:02:53]} 11. cxb3 {[%clk 0:03:00]}  Bd6 {[%clk 0:02:52]} 12. b4 {[%clk 0:02:59]}  O-O {[%clk 0:02:52]} 13. Re1 {[%clk 0:02:56]}  Re8 {[%clk 0:02:51]} 14. e4 {[%clk 0:02:56]}  e5 {[%clk 0:02:25]} 15. Qc2 {[%clk 0:02:44]}  d4 {[%clk 0:02:18]} 16. Nc4 {[%clk 0:02:39]}  Bc7 {[%clk 0:02:12]} 17. a4 {[%clk 0:02:39]}  b5 {[%clk 0:01:48]} 18. Ncd2 {[%clk 0:02:38]}  Nb6 {[%clk 0:01:44]} 19. a5 {[%clk 0:01:58]}  Na4 {[%clk 0:01:44]} 20. Ra2 {[%clk 0:01:57]}  c5 {[%clk 0:01:41]} 21. Rc1 {[%clk 0:01:49]}  Rc8 {[%clk 0:01:27]} 22. bxc5 {[%clk 0:00:48]}  Bxa5 {[%clk 0:01:26]} 23. Nb3 {[%clk 0:00:46]}  Bc3 {[%clk 0:01:23]} 24. Bxc3 {[%clk 0:00:44]}  dxc3 {[%clk 0:01:04]} 25. Rca1 {[%clk 0:00:43]}  Nxc5 {[%clk 0:00:59]} 26. Qxc3 {[%clk 0:00:35]}  Bxf3 {[%clk 0:00:50]} 27. Bxf3 {[%clk 0:00:27]}  Ncxe4 {[%clk 0:00:36]} 28. Qb4 {[%clk 0:00:17]}  Qxd3 {[%clk 0:00:31]} 29. Be2 {[%clk 0:00:17]}  Qc3 {[%clk 0:00:28]} 30. Qa3 {[%clk 0:00:06]}  b4 {[%clk 0:00:23]} 31. Qa4 {[%clk 0:00:06]}  Nc5 {[%clk 0:00:15]} 32. Nxc5 {[%clk 0:00:06]}  Qxc5 {[%clk 0:00:15]} 33. Rb2 {[%clk 0:00:05]}  Rb8 {[%clk 0:00:15]} 34. Rab1 {[%clk 0:00:04]}  Nd5 {[%clk 0:00:14]} 35. Qb3 {[%clk 0:00:02]}  Nc3 {[%clk 0:00:13]} 36. Re1 {[%clk 0:00:02]}  Nxe2+ {[%clk 0:00:12]} 37. Rexe2 {[%clk 0:00:03]}  g6 {[%clk 0:00:09]} 38. Rec2 {[%clk 0:00:04]}  Qe7 {[%clk 0:00:08]} 39. Rc4 {[%clk 0:00:04]}  Kg7 {[%clk 0:00:08]} 40. Rxb4 {[%clk 0:00:04]}  Rxb4 {[%clk 0:00:08]} 41. Qxb4 {[%clk 0:00:05]}  Qxb4 {[%clk 0:00:08]} 42. Rxb4 {[%clk 0:00:06]}  Re7 {[%clk 0:00:08]} 43. Kg2 {[%clk 0:00:06]}  h5 {[%clk 0:00:08]} 44. h4 {[%clk 0:00:06]}  Kf6 {[%clk 0:00:08]} 45. Kf3 {[%clk 0:00:07]}  Kf5 {[%clk 0:00:08]} 46. Rb5 {[%clk 0:00:06]}  f6 {[%clk 0:00:09]} 47. Ra5 {[%clk 0:00:07]}  Rc7 {[%clk 0:00:09]} 48. Ra4 {[%clk 0:00:07]}  Rb7 {[%clk 0:00:09]} 49. Ra5 {[%clk 0:00:06]}  Rd7 {[%clk 0:00:09]} 50. Ra6 {[%clk 0:00:07]}  Rd3+ {[%clk 0:00:09]} 51. Ke2 {[%clk 0:00:07]}  Rb3 {[%clk 0:00:09]} 52. Rc6 {[%clk 0:00:07]}  Rb4 {[%clk 0:00:08]} 53. Kf3 {[%clk 0:00:06]}  g5 {[%clk 0:00:08]} 54. hxg5 {[%clk 0:00:06]}  fxg5 {[%clk 0:00:08]} 55. Rc8 {[%clk 0:00:07]}  Rb3+ {[%clk 0:00:04]} 56. Kg2 {[%clk 0:00:07]}  Kg4 {[%clk 0:00:04]} 57. Rf8 {[%clk 0:00:07]}  e4 {[%clk 0:00:02]} 58. Re8 {[%clk 0:00:07]}  Rb4 {[%clk 0:00:02]} 59. Rf8 {[%clk 0:00:06]}  h4 {[%clk 0:00:02]} 60. gxh4 {[%clk 0:00:06]}  Kxh4 {[%clk 0:00:02]} 61. Rh8+ {[%clk 0:00:06]}  Kg4 {[%clk 0:00:02]} 62. Re8 {[%clk 0:00:06]}  Rd4 {[%clk 0:00:02]} 63. Rxe4+ {[%clk 0:00:06]}  Rxe4 {[%clk 0:00:02]} 64. f3+ {[%clk 0:00:07]}  Kf4 {[%clk 0:00:02]} 65. fxe4 {[%clk 0:00:08]}  Kxe4 {[%clk 0:00:03]} 66. Kg3 {[%clk 0:00:08]}  Kf5 {[%clk 0:00:04]} 67. Kf3 {[%clk 0:00:09]}  g4+ {[%clk 0:00:04]} 68. Kg3 {[%clk 0:00:10]}  Kg5 {[%clk 0:00:04]} 69. Kg2 {[%clk 0:00:11]}  Kf4 {[%clk 0:00:05]} 70. Kf2 {[%clk 0:00:11]}  g3+ {[%clk 0:00:04]} 71. Kg2 {[%clk 0:00:12]}  Kg4 {[%clk 0:00:05]} 72. Kg1 {[%clk 0:00:12]}  Kh3 {[%clk 0:00:05]} 73. Kh1 {[%clk 0:00:13]}  Kg4 {[%clk 0:00:06]} 74. Kg2 {[%clk 0:00:14]}  Kf4 {[%clk 0:00:07]} 75. Kg1 {[%clk 0:00:14]}  Ke3 {[%clk 0:00:07]} 76. Kg2 {[%clk 0:00:15]}  Kf4 {[%clk 0:00:08]} 77. Kg1 {[%clk 0:00:15]}  Kf3 {[%clk 0:00:08]} 78. Kf1 {[%clk 0:00:16]}  Kg4 {[%clk 0:00:09]} 79. Kg2 {[%clk 0:00:16]}  Kh4 {[%clk 0:00:09]} 80. Kg1 {[%clk 0:00:17]}  Kh3 {[%clk 0:00:09]} 81. Kh1 {[%clk 0:00:18]}  g2+ {[%clk 0:00:10]} 82. Kg1 {[%clk 0:00:18]}  Kg3 {[%clk 0:00:11]} 1/2-1/2


[Site "https://www.chess.com"]

[Event "Titled Tuesday Blitz August 1 Early 2023"]
[White "Materia, Marco"]
[Black "Papp, Petra"]
[WhiteFideId "45150451"]
[BlackFideId "739049"]
[WhiteElo "2704"]
[BlackElo "2419"]
[Result "0-1"]
[Round "2"]
[TimeControl "180+1"]
[Date "2023.08.01"]
[WhiteClock "0:00:17"]
[BlackClock "0:00:04"]
[Board "90"]

1. d4 {[%clk 0:03:00]}  d5 {[%clk 0:02:58]} 2. c4 {[%clk 0:03:01]}  c6 {[%clk 0:02:58]} 3. Nf3 {[%clk 0:03:02]}  Nf6 {[%clk 0:02:58]} 4. Nc3 {[%clk 0:03:02]}  dxc4 {[%clk 0:02:57]} 5. a4 {[%clk 0:03:02]}  Bf5 {[%clk 0:02:57]} 6. e3 {[%clk 0:03:03]}  e6 {[%clk 0:02:56]} 7. Bxc4 {[%clk 0:03:02]}  Bb4 {[%clk 0:02:55]} 8. O-O {[%clk 0:03:01]}  O-O {[%clk 0:02:54]} 9. Qe2 {[%clk 0:03:01]}  Bg6 {[%clk 0:02:52]} 10. Ne5 {[%clk 0:02:59]}  Bh5 {[%clk 0:02:47]} 11. Qc2 {[%clk 0:02:57]}  Nbd7 {[%clk 0:02:46]} 12. Nd3 {[%clk 0:02:53]}  Bd6 {[%clk 0:01:53]} 13. e4 {[%clk 0:02:44]}  Bg6 {[%clk 0:01:48]} 14. Qe2 {[%clk 0:02:33]}  e5 {[%clk 0:01:47]} 15. dxe5 {[%clk 0:02:30]}  Nxe5 {[%clk 0:01:46]} 16. Nxe5 {[%clk 0:02:30]}  Bxe5 {[%clk 0:01:47]} 17. Bg5 {[%clk 0:01:56]}  Qc7 {[%clk 0:01:39]} 18. Bxf6 {[%clk 0:01:54]}  Bxf6 {[%clk 0:01:38]} 19. f4 {[%clk 0:01:53]}  Bd4+ {[%clk 0:01:28]} 20. Kh1 {[%clk 0:01:52]}  h6 {[%clk 0:01:28]} 21. e5 {[%clk 0:01:44]}  Bf5 {[%clk 0:01:24]} 22. Qh5 {[%clk 0:01:42]}  Be6 {[%clk 0:00:54]} 23. Bd3 {[%clk 0:01:36]}  f5 {[%clk 0:00:54]} 24. Rad1 {[%clk 0:01:22]}  Rad8 {[%clk 0:00:52]} 25. Bb1 {[%clk 0:01:13]}  Qf7 {[%clk 0:00:48]} 26. Qf3 {[%clk 0:01:12]}  Rd7 {[%clk 0:00:42]} 27. Rd2 {[%clk 0:01:04]}  Rfd8 {[%clk 0:00:40]} 28. h3 {[%clk 0:01:02]}  Bc5 {[%clk 0:00:29]} 29. Rxd7 {[%clk 0:01:00]}  Rxd7 {[%clk 0:00:30]} 30. g4 {[%clk 0:00:56]}  Kh8 {[%clk 0:00:21]} 31. gxf5 {[%clk 0:00:52]}  Bxf5 {[%clk 0:00:21]} 32. Ne4 {[%clk 0:00:51]}  Be7 {[%clk 0:00:20]} 33. Nf6 {[%clk 0:00:45]}  Bxb1 {[%clk 0:00:15]} 34. Nxd7 {[%clk 0:00:44]}  Ba2 {[%clk 0:00:15]} 35. Kh2 {[%clk 0:00:28]}  Be6 {[%clk 0:00:14]} 36. Rd1 {[%clk 0:00:25]}  Qf5 {[%clk 0:00:13]} 37. Rd2 {[%clk 0:00:25]}  Bxd7 {[%clk 0:00:13]} 38. Qg4 {[%clk 0:00:25]}  Qxg4 {[%clk 0:00:12]} 39. hxg4 {[%clk 0:00:26]}  Bxg4 {[%clk 0:00:13]} 40. a5 {[%clk 0:00:25]}  a6 {[%clk 0:00:12]} 41. Rd3 {[%clk 0:00:25]}  Kg8 {[%clk 0:00:11]} 42. Rb3 {[%clk 0:00:25]}  Bc8 {[%clk 0:00:11]} 43. f5 {[%clk 0:00:24]}  Kf7 {[%clk 0:00:09]} 44. Kg3 {[%clk 0:00:23]}  Bxf5 {[%clk 0:00:09]} 45. Rxb7 {[%clk 0:00:23]}  Bd3 {[%clk 0:00:09]} 46. Rc7 {[%clk 0:00:21]}  Bb5 {[%clk 0:00:07]} 47. Kf4 {[%clk 0:00:21]}  Ke6 {[%clk 0:00:07]} 48. Ke4 {[%clk 0:00:21]}  g5 {[%clk 0:00:07]} 49. Rc8 {[%clk 0:00:22]}  h5 {[%clk 0:00:07]} 50. Rh8 {[%clk 0:00:22]}  h4 {[%clk 0:00:06]} 51. Rh6+ {[%clk 0:00:22]}  Kd7 {[%clk 0:00:06]} 52. e6+ {[%clk 0:00:22]}  Kd6 {[%clk 0:00:06]} 53. Kf5 {[%clk 0:00:22]}  Bd3+ {[%clk 0:00:06]} 54. Kg4 {[%clk 0:00:22]}  c5 {[%clk 0:00:05]} 55. Rh8 {[%clk 0:00:19]}  Kxe6 {[%clk 0:00:05]} 56. Re8 {[%clk 0:00:19]}  Be2+ {[%clk 0:00:05]} 57. Kh3 {[%clk 0:00:19]}  Bb5 {[%clk 0:00:05]} 58. Rb8 {[%clk 0:00:18]}  Kf5 {[%clk 0:00:05]} 59. Rxb5 {[%clk 0:00:18]}  g4+ {[%clk 0:00:05]} 60. Kg2 {[%clk 0:00:17]}  h3+ {[%clk 0:00:05]} 61. Kf1 {[%clk 0:00:17]}  axb5 {[%clk 0:00:03]} 62. a6 {[%clk 0:00:17]}  g3 {[%clk 0:00:03]} 63. a7 {[%clk 0:00:18]}  g2+ {[%clk 0:00:03]} 64. Kf2 {[%clk 0:00:18]}  c4 {[%clk 0:00:04]} 65. a8=Q {[%clk 0:00:18]}  Bc5+ {[%clk 0:00:04]} 66. Kf3 {[%clk 0:00:19]}  g1=Q {[%clk 0:00:04]} 67. Qd5+ {[%clk 0:00:19]}  Kf6 {[%clk 0:00:04]} 68. Qc6+ {[%clk 0:00:19]}  Ke5 {[%clk 0:00:04]} 69. Qe4+ {[%clk 0:00:19]}  Kd6 {[%clk 0:00:04]} 70. Qf4+ {[%clk 0:00:19]}  Kc6 {[%clk 0:00:04]} 71. Qe4+ {[%clk 0:00:19]}  Kb6 {[%clk 0:00:04]} 72. Qe6+ {[%clk 0:00:19]}  Ka5 {[%clk 0:00:04]} 73. Qxh3 {[%clk 0:00:17]}  Qe3+ {[%clk 0:00:04]} 0-1


[Site "https://www.chess.com"]

[Event "Titled Tuesday Blitz August 1 Early 2023"]
[White "Tsyhanchuk, Stanislav"]
[Black "only_strong_moves"]
[WhiteFideId "13505130"]
[WhiteElo "2418"]
[BlackElo "2702"]
[Result "0-1"]
[Round "2"]
[TimeControl "180+1"]
[Date "2023.08.01"]
[WhiteClock "0:00:09"]
[BlackClock "0:00:07"]
[Board "92"]

1. c4 {[%clk 0:03:00]}  e6 {[%clk 0:02:59]} 2. Nc3 {[%clk 0:03:00]}  Nf6 {[%clk 0:03:00]} 3. d4 {[%clk 0:02:59]}  d5 {[%clk 0:03:00]} 4. cxd5 {[%clk 0:02:56]}  exd5 {[%clk 0:02:59]} 5. Bg5 {[%clk 0:02:56]}  c6 {[%clk 0:03:00]} 6. e3 {[%clk 0:02:56]}  Bd6 {[%clk 0:03:01]} 7. Bd3 {[%clk 0:02:55]}  O-O {[%clk 0:03:01]} 8. Nf3 {[%clk 0:02:52]}  h6 {[%clk 0:03:00]} 9. Bh4 {[%clk 0:02:52]}  a5 {[%clk 0:02:58]} 10. O-O {[%clk 0:02:46]}  Na6 {[%clk 0:02:57]} 11. a3 {[%clk 0:02:42]}  Re8 {[%clk 0:02:57]} 12. Rc1 {[%clk 0:02:33]}  Bg4 {[%clk 0:02:55]} 13. Kh1 {[%clk 0:02:14]}  Nc7 {[%clk 0:02:54]} 14. Be2 {[%clk 0:02:07]}  Be7 {[%clk 0:02:17]} 15. Ne5 {[%clk 0:02:05]}  Bxe2 {[%clk 0:02:15]} 16. Qxe2 {[%clk 0:02:06]}  Ne4 {[%clk 0:01:57]} 17. Nxe4 {[%clk 0:02:00]}  dxe4 {[%clk 0:01:45]} 18. Bg3 {[%clk 0:01:58]}  Nd5 {[%clk 0:01:41]} 19. Qh5 {[%clk 0:01:48]}  Rf8 {[%clk 0:01:15]} 20. Qf5 {[%clk 0:01:44]}  Nf6 {[%clk 0:01:11]} 21. Bh4 {[%clk 0:01:36]}  Nh7 {[%clk 0:00:43]} 22. Bxe7 {[%clk 0:01:16]}  Qxe7 {[%clk 0:00:44]} 23. Qxe4 {[%clk 0:01:11]}  f6 {[%clk 0:00:40]} 24. Qh4 {[%clk 0:01:03]}  g5 {[%clk 0:00:32]} 25. Ng6 {[%clk 0:01:01]}  Qg7 {[%clk 0:00:21]} 26. Qe4 {[%clk 0:01:00]}  Rfe8 {[%clk 0:00:14]} 27. Qd3 {[%clk 0:00:51]}  Rad8 {[%clk 0:00:14]} 28. h4 {[%clk 0:00:49]}  Qf7 {[%clk 0:00:10]} 29. h5 {[%clk 0:00:47]}  Kg7 {[%clk 0:00:10]} 30. Rc5 {[%clk 0:00:45]}  Rd5 {[%clk 0:00:08]} 31. Rfc1 {[%clk 0:00:39]}  Red8 {[%clk 0:00:08]} 32. Qb3 {[%clk 0:00:36]}  Nf8 {[%clk 0:00:06]} 33. Rxd5 {[%clk 0:00:33]}  Rxd5 {[%clk 0:00:06]} 34. Nxf8 {[%clk 0:00:32]}  Kxf8 {[%clk 0:00:03]} 35. g4 {[%clk 0:00:29]}  Qd7 {[%clk 0:00:04]} 36. f3 {[%clk 0:00:25]}  f5 {[%clk 0:00:04]} 37. Rf1 {[%clk 0:00:18]}  Kg7 {[%clk 0:00:03]} 38. gxf5 {[%clk 0:00:17]}  Rxf5 {[%clk 0:00:03]} 39. e4 {[%clk 0:00:16]}  Rf4 {[%clk 0:00:03]} 40. Qc2 {[%clk 0:00:11]}  Qh3+ {[%clk 0:00:03]} 41. Qh2 {[%clk 0:00:08]}  Qxf1+ {[%clk 0:00:03]} 42. Qg1 {[%clk 0:00:09]}  Qxf3+ {[%clk 0:00:03]} 43. Qg2 {[%clk 0:00:08]}  Qxh5+ {[%clk 0:00:03]} 44. Kg1 {[%clk 0:00:09]}  Qd1+ {[%clk 0:00:04]} 45. Kh2 {[%clk 0:00:09]}  Rh4+ {[%clk 0:00:05]} 46. Kg3 {[%clk 0:00:09]}  Rg4+ {[%clk 0:00:05]} 47. Kh3 {[%clk 0:00:09]}  Rxg2 {[%clk 0:00:06]} 48. Kxg2 {[%clk 0:00:10]}  Qxd4 {[%clk 0:00:07]} 49. Kg3 {[%clk 0:00:09]}  Qxb2 {[%clk 0:00:07]} 0-1


[Site "https://www.chess.com"]

[Event "Titled Tuesday Blitz August 1 Early 2023"]
[White "Bogaudinov, Rushan"]
[Black "Zeynalli, Rashad"]
[WhiteFideId "4129288"]
[BlackFideId "13403320"]
[WhiteElo "2418"]
[BlackElo "2697"]
[Result "0-1"]
[Round "2"]
[TimeControl "180+1"]
[Date "2023.08.01"]
[WhiteClock "0:00:04"]
[BlackClock "0:00:15"]
[Board "93"]

1. e4 {[%clk 0:02:59]}  c6 {[%clk 0:02:59]} 2. d4 {[%clk 0:02:59]}  d5 {[%clk 0:02:59]} 3. e5 {[%clk 0:02:59]}  Bf5 {[%clk 0:02:59]} 4. c4 {[%clk 0:03:00]}  e6 {[%clk 0:02:59]} 5. Nc3 {[%clk 0:02:59]}  Bb4 {[%clk 0:02:59]} 6. Qb3 {[%clk 0:02:59]}  a5 {[%clk 0:02:57]} 7. cxd5 {[%clk 0:02:57]}  Qxd5 {[%clk 0:02:53]} 8. Qxd5 {[%clk 0:02:39]}  cxd5 {[%clk 0:02:51]} 9. Bd2 {[%clk 0:02:32]}  Nc6 {[%clk 0:02:46]} 10. Bb5 {[%clk 0:02:30]}  Ne7 {[%clk 0:02:42]} 11. a3 {[%clk 0:02:29]}  Bxc3 {[%clk 0:02:42]} 12. bxc3 {[%clk 0:02:30]}  O-O {[%clk 0:02:35]} 13. Nf3 {[%clk 0:02:26]}  Be4 {[%clk 0:02:33]} 14. Ke2 {[%clk 0:02:19]}  f6 {[%clk 0:02:28]} 15. exf6 {[%clk 0:02:16]}  Rxf6 {[%clk 0:02:29]} 16. Ne1 {[%clk 0:02:10]}  e5 {[%clk 0:02:24]} 17. f3 {[%clk 0:02:06]}  Bg6 {[%clk 0:02:23]} 18. Bg5 {[%clk 0:01:50]}  Re6 {[%clk 0:02:14]} 19. Bxe7 {[%clk 0:01:32]}  exd4+ {[%clk 0:02:03]} 20. Kf2 {[%clk 0:01:30]}  Rxe7 {[%clk 0:02:03]} 21. Bxc6 {[%clk 0:01:25]}  bxc6 {[%clk 0:02:04]} 22. cxd4 {[%clk 0:01:25]}  Rb8 {[%clk 0:02:04]} 23. Rc1 {[%clk 0:01:16]}  Rb2+ {[%clk 0:01:58]} 24. Kg3 {[%clk 0:01:16]}  Re6 {[%clk 0:01:58]} 25. h4 {[%clk 0:01:13]}  h5 {[%clk 0:01:58]} 26. Rf1 {[%clk 0:01:11]}  Rb3 {[%clk 0:01:41]} 27. Nc2 {[%clk 0:00:41]}  Rc3 {[%clk 0:01:27]} 28. Rf2 {[%clk 0:00:37]}  c5 {[%clk 0:01:18]} 29. dxc5 {[%clk 0:00:33]}  Rc6 {[%clk 0:01:19]} 30. Nd4 {[%clk 0:00:28]}  R6xc5 {[%clk 0:01:06]} 31. Re1 {[%clk 0:00:22]}  Rxa3 {[%clk 0:01:01]} 32. Re7 {[%clk 0:00:19]}  Bf7 {[%clk 0:01:00]} 33. Rb2 {[%clk 0:00:17]}  Ra4 {[%clk 0:00:50]} 34. Nf5 {[%clk 0:00:15]}  Rb4 {[%clk 0:00:48]} 35. Rd2 {[%clk 0:00:13]}  d4 {[%clk 0:00:43]} 36. Nxd4 {[%clk 0:00:11]}  Rd5 {[%clk 0:00:42]} 37. Rc2 {[%clk 0:00:10]}  Rbxd4 {[%clk 0:00:40]} 38. Rc8+ {[%clk 0:00:10]}  Rd8 {[%clk 0:00:41]} 39. Rcc7 {[%clk 0:00:09]}  Rf8 {[%clk 0:00:41]} 40. Ra7 {[%clk 0:00:09]}  a4 {[%clk 0:00:41]} 41. Kf2 {[%clk 0:00:07]}  Rd2+ {[%clk 0:00:41]} 42. Kg3 {[%clk 0:00:07]}  Ra2 {[%clk 0:00:41]} 43. Ra5 {[%clk 0:00:06]}  a3 {[%clk 0:00:38]} 44. Kf4 {[%clk 0:00:06]}  Ra1 {[%clk 0:00:26]} 45. g4 {[%clk 0:00:05]}  hxg4 {[%clk 0:00:26]} 46. fxg4 {[%clk 0:00:05]}  a2 {[%clk 0:00:23]} 47. Rea7 {[%clk 0:00:05]}  Be6+ {[%clk 0:00:16]} 48. Kg5 {[%clk 0:00:05]}  Rd1 {[%clk 0:00:15]} 49. h5 {[%clk 0:00:04]}  Rd5+ {[%clk 0:00:14]} 50. Rxd5 {[%clk 0:00:04]}  Bxd5 {[%clk 0:00:15]} 51. h6 {[%clk 0:00:04]}  gxh6+ {[%clk 0:00:14]} 52. Kxh6 {[%clk 0:00:05]}  Ra8 {[%clk 0:00:13]} 53. Rg7+ {[%clk 0:00:03]}  Kf8 {[%clk 0:00:14]} 54. Rd7 {[%clk 0:00:02]}  a1=Q {[%clk 0:00:13]} 55. Rxd5 {[%clk 0:00:03]}  Qg7+ {[%clk 0:00:13]} 56. Kh5 {[%clk 0:00:03]}  Qf7+ {[%clk 0:00:14]} 57. Kg5 {[%clk 0:00:03]}  Qxd5+ {[%clk 0:00:15]} 58. Kh6 {[%clk 0:00:04]}  Ra6+ {[%clk 0:00:15]} 59. Kh7 {[%clk 0:00:04]}  Qg8# {[%clk 0:00:15]} 0-1


[Site "https://www.chess.com"]

[Event "Titled Tuesday Blitz August 1 Early 2023"]
[White "Goltsev, Dmitry"]
[Black "Al Mukhaini, Shima"]
[WhiteFideId "24176710"]
[BlackFideId "22005854"]
[WhiteElo "2684"]
[BlackElo "2393"]
[Result "0-1"]
[Round "2"]
[TimeControl "180+1"]
[Date "2023.08.01"]
[WhiteClock "0:00:53"]
[BlackClock "0:00:26"]
[Board "95"]

1. e4 {[%clk 0:02:59]}  c5 {[%clk 0:02:59]} 2. Nf3 {[%clk 0:03:00]}  d6 {[%clk 0:03:00]} 3. d4 {[%clk 0:03:00]}  cxd4 {[%clk 0:03:00]} 4. Nxd4 {[%clk 0:03:01]}  Nf6 {[%clk 0:03:01]} 5. Nc3 {[%clk 0:03:02]}  a6 {[%clk 0:03:01]} 6. Be2 {[%clk 0:03:02]}  e6 {[%clk 0:03:02]} 7. O-O {[%clk 0:03:02]}  Be7 {[%clk 0:03:02]} 8. Be3 {[%clk 0:03:02]}  O-O {[%clk 0:03:03]} 9. f4 {[%clk 0:03:02]}  Nc6 {[%clk 0:03:03]} 10. Bf3 {[%clk 0:03:02]}  Qc7 {[%clk 0:03:03]} 11. Qd2 {[%clk 0:03:02]}  Rb8 {[%clk 0:03:01]} 12. a4 {[%clk 0:03:01]}  Nxd4 {[%clk 0:02:58]} 13. Bxd4 {[%clk 0:03:01]}  b6 {[%clk 0:02:55]} 14. e5 {[%clk 0:02:59]}  Nd7 {[%clk 0:02:48]} 15. exd6 {[%clk 0:02:57]}  Bxd6 {[%clk 0:02:49]} 16. g3 {[%clk 0:02:56]}  Bc5 {[%clk 0:02:44]} 17. Kg2 {[%clk 0:02:54]}  Bb7 {[%clk 0:02:44]} 18. Rad1 {[%clk 0:02:53]}  Bxf3+ {[%clk 0:02:43]} 19. Rxf3 {[%clk 0:02:53]}  Bxd4 {[%clk 0:02:34]} 20. Qxd4 {[%clk 0:02:54]}  Nc5 {[%clk 0:02:31]} 21. f5 {[%clk 0:02:49]}  exf5 {[%clk 0:02:23]} 22. Nd5 {[%clk 0:02:49]}  Qb7 {[%clk 0:02:16]} 23. Rxf5 {[%clk 0:02:39]}  Ne6 {[%clk 0:02:14]} 24. Qe4 {[%clk 0:02:36]}  Rfe8 {[%clk 0:02:06]} 25. c4 {[%clk 0:02:33]}  b5 {[%clk 0:02:04]} 26. axb5 {[%clk 0:02:32]}  axb5 {[%clk 0:02:04]} 27. b3 {[%clk 0:02:32]}  bxc4 {[%clk 0:02:04]} 28. bxc4 {[%clk 0:02:33]}  Nc5 {[%clk 0:01:53]} 29. Qg4 {[%clk 0:02:22]}  g6 {[%clk 0:01:36]} 30. Rf3 {[%clk 0:02:13]}  Re2+ {[%clk 0:01:28]} 31. Kh3 {[%clk 0:02:13]}  Qb2 {[%clk 0:01:21]} 32. Rh1 {[%clk 0:02:06]}  Ne4 {[%clk 0:01:11]} 33. Qf4 {[%clk 0:02:01]}  Nf2+ {[%clk 0:01:04]} 34. Kh4 {[%clk 0:02:01]}  Re4 {[%clk 0:00:53]} 35. Rxf2 {[%clk 0:01:38]}  Rxf4+ {[%clk 0:00:53]} 36. Rxf4 {[%clk 0:01:39]}  Qg2 {[%clk 0:00:44]} 37. Rhf1 {[%clk 0:01:31]}  f5 {[%clk 0:00:42]} 38. Kg5 {[%clk 0:01:31]}  Kg7 {[%clk 0:00:40]} 39. Rh4 {[%clk 0:01:16]}  Qxf1 {[%clk 0:00:38]} 40. Nf4 {[%clk 0:01:13]}  Re8 {[%clk 0:00:34]} 41. c5 {[%clk 0:01:09]}  Qf3 {[%clk 0:00:33]} 42. Nh5+ {[%clk 0:00:55]}  gxh5 {[%clk 0:00:33]} 43. c6 {[%clk 0:00:55]}  Qg4+ {[%clk 0:00:31]} 44. Rxg4 {[%clk 0:00:55]}  fxg4 {[%clk 0:00:31]} 45. Kxh5 {[%clk 0:00:53]}  Rc8 {[%clk 0:00:32]} 46. Kxg4 {[%clk 0:00:54]}  Rxc6 {[%clk 0:00:32]} 47. Kh5 {[%clk 0:00:55]}  Rc2 {[%clk 0:00:30]} 48. h4 {[%clk 0:00:53]}  Rc5+ {[%clk 0:00:30]} 49. Kg4 {[%clk 0:00:53]}  h5+ {[%clk 0:00:29]} 50. Kf4 {[%clk 0:00:54]}  Kf6 {[%clk 0:00:30]} 51. Ke4 {[%clk 0:00:53]}  Rc3 {[%clk 0:00:29]} 52. Kf4 {[%clk 0:00:52]}  Rc4+ {[%clk 0:00:29]} 53. Ke3 {[%clk 0:00:52]}  Kf5 {[%clk 0:00:30]} 54. Kf3 {[%clk 0:00:52]}  Rc3+ {[%clk 0:00:26]} 55. Ke2 {[%clk 0:00:52]}  Kg4 {[%clk 0:00:27]} 56. Kd2 {[%clk 0:00:53]}  Rxg3 {[%clk 0:00:26]} 57. Ke2 {[%clk 0:00:53]}  Rf3 {[%clk 0:00:26]} 0-1


[Site "https://www.chess.com"]